Workbook

Sheet Лист1
H4: № насоса | I4: Производительность насоса, м3/час | J4: Факт, м3/сут | K4: Режим работы | M4: Режим работы Q + 2000 м3 | O4: Режим работы Q - 2000 м3
K5: час/сут | L5: м3/сут | M5: час/сут | N5: м3/сут | O5: час/сут | P5: м3/сут
H6: 1 | I6: 287.4630435 | J6: 22053.54839 | K6: =podbor($I$6:$I$9,L11) -> 7 | L6: =K6*$I6 -> 2012.241304 | M6: =podbor($I$6:$I$9,N11) -> 16 | N6: =M6*$I6 -> 4599.408696 | O6: =podbor($I$6:$I$9,P11) -> 17 | P6: =O6*$I6 -> 4886.871739
H7: 2 | I7: 269.2526316 | K7: 9 | L7: =K7*$I7 -> 2423.273684 | M7: 1 | N7: =M7*$I7 -> 269.2526316 | O7: 11 | P7: =O7*$I7 -> 2961.778947
H8: 3 | I8: 201.7345416 | K8: 12 | L8: =K8*$I8 -> 2420.814499 | M8: 16 | N8: =M8*$I8 -> 3227.752665 | O8: 4 | P8: =O8*$I8 -> 806.9381663
H9: 4 | I9: 759.8642857 | K9: 20 | L9: =K9*$I9 -> 15197.28571 | M9: 21 | N9: =M9*$I9 -> 15957.15 | O9: 15 | P9: =O9*$I9 -> 11397.96429
A10: 1. Необходимо подобрать слагаемые из массива I6:I9 под сумму J6 (делённую на 24), после чего в соответствующую ячейку массива K6:K9 вернуть часовое значение, благодаря которому подбирается ближайшее значение суммы. 2. Практически тоже самое, что и в п.1, только изменится значение в ячейке J6: (J6+2000)/24 и часовое значение необходимо вернуть в массив M6:M9. 3. Практически тоже самое, что и в п.1, только изменится значение в ячейке J6: (J6-2000)/24 и часовое значение необходимо вернуть в массив O6:O9. | J10: Есть | L10: =SUM(L6:L9) -> 22053.6152 | N10: =SUM(N6:N9) -> 24053.56399 | P10: =SUM(P6:P9) -> 20053.55314
J11: Нужно | L11: =J6 -> 22053.54839 | N11: =J6+2000 -> 24053.54839 | P11: =J6-2000 -> 20053.54839
J12: откл. | L12: =+L10-L11 -> 0.06681468118 | N12: =+N10-N11 -> 0.01560537953 | P12: =+P10-P11 -> 0.004751427648
H13: 1 | I13: 745.5479452 | J13: 18777.29032 | K13: =podbor($I$13:$I$15,$J13) ->  | L13: =K13*$I13 ->  | M13: =podbor($I$13:$I$15,$J13+2000) ->  | N13: =M13*$I13 ->  | O13: =podbor($I$13:$I$15,$J13-2000) -> 
H14: 2 | I14: 795.4789063 | K14: =podbor($I$13:$I$15,$J13) ->  | M14: =podbor($I$13:$I$15,$J13+2000) ->  | N14: =M14*$I14 ->  | O14: =podbor($I$13:$I$15,$J13-2000) -> 
H15: 3 | I15: 687.5703704 | K15: =podbor($I$13:$I$15,$J13) ->  | M15: =podbor($I$13:$I$15,$J13+2000) ->  | N15: =M15*$I15 ->  | O15: =podbor($I$13:$I$15,$J13-2000) -> 
H16: 1 | I16: 736.4587613 | J16: 38715.35161 | K16: =podbor($I$16:$I$20,$J16) -> 22 | L16: 16202.09275 | M16: =podbor($I$16:$I$20,$J16+2000) -> 24 | N16: =M16*$I16 -> 17675.01027 | O16: =podbor($I$16:$I$20,$J16-2000) -> 22 | P16: 16202.09275
H17: 2 | I17: 747.7109375 | K17: =podbor($I$16:$I$20,$J16) -> 22 | L17: 16449.64062 | M17: =podbor($I$16:$I$20,$J16+2000) -> 24 | N17: =M17*$I17 -> 17945.0625 | O17: =podbor($I$16:$I$20,$J16-2000) -> 22 | P17: 16449.64062
H18: 3 | I18: 193.1909091 | K18: =podbor($I$16:$I$20,$J16) -> 22 | L18: 4250.2 | M18: =podbor($I$16:$I$20,$J16+2000) -> 24 | N18: =M18*$I18 -> 4636.581818 | O18: =podbor($I$16:$I$20,$J16-2000) -> 22 | P18: 4250.2
H19: 4 | I19: 256.5267442 | K19: =podbor($I$16:$I$20,$J16) -> 22 | L19: 5643.588372 | M19: =podbor($I$16:$I$20,$J16+2000) -> 24 | N19: =M19*$I19 -> 6156.64186 | O19: =podbor($I$16:$I$20,$J16-2000) -> 22 | P19: 5643.588372
H20: 5 | I20: 774.1416446 | K20: =podbor($I$16:$I$20,$J16) -> 22 | L20: 17031.11618 | M20: =podbor($I$16:$I$20,$J16+2000) -> 24 | N20: =M20*$I20 -> 18579.39947 | O20: =podbor($I$16:$I$20,$J16-2000) -> 22 | P20: 17031.11618
H21: 1 | I21: 0 | J21: 34046.77419 | K21: =podbor($I$21:$I$25,$J21) ->  | M21: =podbor($I$21:$I$25,$J21+2000) ->  | N21: =M21*$I21 ->  | O21: =podbor($I$21:$I$25,$J21-2000) -> 
H22: 2 | I22: 740.6272201 | K22: =podbor($I$21:$I$25,$J21) ->  | M22: =podbor($I$21:$I$25,$J21+2000) ->  | N22: =M22*$I22 ->  | O22: =podbor($I$21:$I$25,$J21-2000) -> 
H23: 3 | I23: 719.8819048 | K23: =podbor($I$21:$I$25,$J21) ->  | M23: =podbor($I$21:$I$25,$J21+2000) ->  | N23: =M23*$I23 ->  | O23: =podbor($I$21:$I$25,$J21-2000) -> 
H24: 4 | I24: 685.3503852 | K24: =podbor($I$21:$I$25,$J21) ->  | M24: =podbor($I$21:$I$25,$J21+2000) ->  | N24: =M24*$I24 ->  | O24: =podbor($I$21:$I$25,$J21-2000) -> 
H25: 5 | I25: 249.8 | K25: =podbor($I$21:$I$25,$J21) ->  | M25: =podbor($I$21:$I$25,$J21+2000) ->  | N25: =M25*$I25 ->  | O25: =podbor($I$21:$I$25,$J21-2000) -> 
H26: 1 | I26: 288.0307018 | J26: 13406.59677 | K26: =podbor($I$26:$I$31,$J26) ->  | M26: =podbor($I$26:$I$31,$J26+2000) ->  | N26: =M26*$I26 ->  | O26: =podbor($I$26:$I$31,$J26-2000) -> 
H27: 2 | I27: 219.95 | K27: =podbor($I$26:$I$31,$J26) ->  | M27: =podbor($I$26:$I$31,$J26+2000) ->  | N27: =M27*$I27 ->  | O27: =podbor($I$26:$I$31,$J26-2000) -> 
H28: 3 | I28: 291.8973684 | K28: =podbor($I$26:$I$31,$J26) ->  | M28: =podbor($I$26:$I$31,$J26+2000) ->  | N28: =M28*$I28 ->  | O28: =podbor($I$26:$I$31,$J26-2000) -> 
H29: 4 | I29: 0 | K29: =podbor($I$26:$I$31,$J26) ->  | M29: =podbor($I$26:$I$31,$J26+2000) ->  | N29: =M29*$I29 ->  | O29: =podbor($I$26:$I$31,$J26-2000) -> 
H30: 5 | I30: 270.2939189 | K30: =podbor($I$26:$I$31,$J26) ->  | M30: =podbor($I$26:$I$31,$J26+2000) ->  | N30: =M30*$I30 ->  | O30: =podbor($I$26:$I$31,$J26-2000) -> 
H31: 6 | I31: 0 | K31: =podbor($I$26:$I$31,$J26) ->  | M31: =podbor($I$26:$I$31,$J26+2000) ->  | N31: =M31*$I31 ->  | O31: =podbor($I$26:$I$31,$J26-2000) -> 
H32: 1 | I32: 259.7093623 | J32: 18449.81778 | K32: =podbor($I$32:$I$34,$J32) ->  | M32: =podbor($I$32:$I$34,$J32+2000) ->  | N32: =M32*$I32 ->  | O32: =podbor($I$32:$I$34,$J32-2000) -> 
H33: 2 | I33: 256.5090663 | K33: =podbor($I$32:$I$34,$J32) ->  | M33: =podbor($I$32:$I$34,$J32+2000) ->  | N33: =M33*$I33 ->  | O33: =podbor($I$32:$I$34,$J32-2000) -> 
H34: 3 | I34: 258.4281461 | K34: =podbor($I$32:$I$34,$J32) ->  | M34: =podbor($I$32:$I$34,$J32+2000) ->  | N34: =M34*$I34 ->  | O34: =podbor($I$32:$I$34,$J32-2000) -> 
H35: 1 | I35: 805.4316901 | J35: 41212.41935 | K35: =podbor($I$35:$I$38,$J35) -> 24 | L35: 19330.36056 | M35: =podbor($I$35:$I$38,$J35+2000) -> 18 | N35: =M35*$I35 -> 14497.77042 | O35: =podbor($I$35:$I$38,$J35-2000) -> 13 | P35: 10470.61197
H36: 2 | I36: 774.8293532 | K36: =podbor($I$35:$I$38,$J35) -> 24 | L36: 18595.90448 | M36: =podbor($I$35:$I$38,$J35+2000) -> 18 | N36: =M36*$I36 -> 13946.92836 | O36: =podbor($I$35:$I$38,$J35-2000) -> 13 | P36: 10072.78159
H37: 3 | I37: 923.0895161 | K37: =podbor($I$35:$I$38,$J35) -> 24 | L37: 22154.14839 | M37: =podbor($I$35:$I$38,$J35+2000) -> 18 | N37: =M37*$I37 -> 16615.61129 | O37: =podbor($I$35:$I$38,$J35-2000) -> 13 | P37: 12000.16371
H38: 4 | I38: 242.4447368 | K38: =podbor($I$35:$I$38,$J35) -> 24 | L38: 5818.673684 | M38: =podbor($I$35:$I$38,$J35+2000) -> 18 | N38: =M38*$I38 -> 4364.005263 | O38: =podbor($I$35:$I$38,$J35-2000) -> 13 | P38: 3151.781579
H39: 17 | I39: 53.55403087 | J39: 1285.96671
H40: 18 | I40: 53.6826087
H41: 19 | I41: 0
H42: 1 | I42: 863.0761494 | J42: 49008.38658
H43: 2 | I43: 280.5757983
H44: 3 | I44: 861.2022727
H45: 4 | I45: 875.6713781
H46: 5 | I46: 279.9422819
H47: 6 | I47: 914.1093275
H48: 1 | I48: 0 | J48: 10815.74194
H49: 2 | I49: 222.2620202
H50: 3 | I50: 217.9606299
H51: 4 | I51: 223.897852
H52: 5 | I52: 234.8552469
H53: 1 | I53: 243.3269231 | J53: 72016.96774
H54: 2 | I54: 818.5902873
H55: 3 | I55: 784.5832196
H56: 4 | I56: 244.0571429
H57: 5 | I57: 705.1588076
H58: 6 | I58: 706.2762097
H59: 1 | I59: 815.5293103 | J59: 51757.16129
H60: 2 | I60: 705.8092559
H61: 3 | I61: 772.4727513
H62: 4 | I62: 807.1820163
H63: 2 | I63: 0 | J63: 46536.45161
H64: 3 | I64: 769.0546326
H65: 4 | I65: 725.5211268
H66: 5 | I66: 530.4546201
H67: 6 | I67: 728.5017473
H68: 7 | I68: 457.9223022
H69: 8 | I69: 244.5432203
H70: 5 | I70: 482.6315526 | J70: 44970.82043
H71: 6 | I71: 0
H72: 7 | I72: 235.5824
H73: 8 | I73: 742.2906977
H74: 9 | I74: 0
H75: 10 | I75: 582.9415385
H76: 11 | I76: 745.0643678
H77: 12 | I77: 727.6318115
H78: 4 | I78: 901.6092742 | J78: 63428.19355
H79: 5 | I79: 853.0517241
H80: 6 | I80: 927.1143617
H81: 7 | I81: 774.4816199
H82: 8 | I82: 893.2115068
H83: 9 | I83: 891.982735
H84: 1 | I84: 640.7704415 | J84: 56984.06452
H85: 2 | I85: 742.1994109
H86: 3 | I86: 631.1816514
H87: 4 | I87: 731.7991489
H88: 1 | I88: 811.5406755 | J88: 45093.83871
H89: 2 | I89: 767.4451531
H90: 3 | I90: 688.9145669
H91: 4 | I91: 731.5386139
H92: 1 | I92: 809.9420319 | J92: 41769.00456
H93: 2 | I93: 771.3478333
H94: 3 | I94: 699.4855263
H95: 4 | I95: 656.7450704
H96: 5 | I96: 277.7882759
H97: 6 | I97: 188.2778846
H98: 1 | I98: 962.3045113 | J98: 31528.67742
H99: 2 | I99: 670.3982055
H100: 3 | I100: 711.2497445
H101: 4 | I101: 272.0090909
H102: 5 | I102: 780.1813291 | J102: 48181.48109
H103: 6 | I103: 747.2315315
H104: 7 | I104: 711.7772727
H105: 8 | I105: 672.0675958
H106: 9 | I106: 243.6928889
H107: 10 | I107: 177.3211111
H108: 1 | I108: 756.6759124 | J108: 62245.32258
H109: 2 | I109: 996.9075342
H110: 3 | I110: 1072.648113
H111: 4 | I111: 1086.485196
H112: 5 | I112: 1035.918011
H113: 6 | I113: 0
H114: 7 | I114: 351.6630165
H115: 8 | I115: 0
H116: 1 | I116: 200.4668067 | J116: 88718.14502
H117: 2 | I117: 257.9026971
H118: 3 | I118: 244.4405
H119: 4 | I119: 256.125
H120: 5 | I120: 238.6735144
H121: 6 | I121: 246.234103
H122: 7 | I122: 192.4177596
H123: 8 | I123: 259.9022191
H124: 9 | I124: 818.3579301
H125: 10 | I125: 824.7662634
H126: 11 | I126: 627.0521978
H127: 5 | I127: 256.8580741 | J127: 12212.41935
H128: 6 | I128: 240.4521739
H129: 7 | I129: 254.3005398
H130: 8 | I130: 177.9
H131: 1 | I131: 766.8326087 | J131: 67567.6129
H132: 2 | I132: 249.0532154
H133: 3 | I133: 705.7120921
H134: 4 | I134: 245.878481
H135: 5 | I135: 806.54352
H136: 6 | I136: 789.9248731
H137: 7 | I137: 0
H138: 8 | I138: 792.1463077
H139: 1 | I139: 773.376087 | J139: 50959.83871
H140: 2 | I140: 768.5328398
H141: 3 | I141: 763.5820917
H142: 4 | I142: 278.751817
H143: 5 | I143: 319.269726
H144: 6 | I144: 0
H145: 1 | I145: 681.2762319 | J145: 36763.83871
H146: 2 | I146: 802.8200501
H147: 3 | I147: 0
H148: 4 | I148: 0
H149: 5 | I149: 785.3676075
H150: 1 | I150: 0 | J150: 5733.433716
H151: 4 | I151: 0
H152: 1 | I152: 518.8837178 | J152: 50829.25806
H153: 2 | I153: 557.5122257
H154: 3 | I154: 553.4370423
H155: 4 | I155: 553.9499148
H156: 5 | I156: 535.8201794
H157: 5 | I157: 742.7802083 | J157: 38722.51613
H158: 6 | I158: 817.2912791
H159: 7 | I159: 849.1160377
H160: 8 | I160: 810.7604
H161: 1 | I161: 766.5336683 | J161: 41261.67742
H162: 2 | I162: 815.7309982
H163: 3 | I163: 825.9670782
H164: 4 | I164: 811.4275132
H165: 1 | I165: 272.1504587 | J165: 19294.35484
H166: 2 | I166: 265.9583558
H167: 3 | I167: 270.4417687
H168: 4 | I168: 263.7712025
H169: 1 | I169: 247.5994048 | J169: 12465.80645
H170: 2 | I170: 207.8058296
H171: 3 | I171: 258.3553779
H172: 4 | I172: 204.9955923
H173: 1 | I173: 41.034375 | J173: 985.6129032
H174: 2 | I174: 0
H175: 3 | I175: 41.13078056
H176: 1 | I176: 0 | J176: 5371.935484
H177: 2 | I177: 0
H178: 3 | I178: 224.7368421
H179: 1 | I179: 0 | J179: 6748.548387
H180: 2 | I180: 286.2419014
H181: 3 | I181: 281.1259341
H182: 1 | I182: 225.3361186 | J182: 10577.74194
H183: 2 | I183: 220.2991708
H184: 4 | I184: 197.6609929

Sheet Лист2
A1: Нужно | B1: 38715.4 | C1: Искомая сумма | G1: Нужно | H1: 22053.6 | J1: Нужно | K1: =H1+2000 -> 24053.6 | M1: Нужно | N1: =H1-2000 -> 20053.6
A2: Кол-во не более | B2: 3 | C2: Кол-во различных слагаемых | G2: Кол-во не более | H2: 2 | J2: Кол-во не более | K2: 2 | M2: Кол-во не более | N2: 2
A3: Точность | B3: 1 | C3: Кол-во знаков после запятой | G3: Точность | H3: 1 | J3: Точность | K3: 1 | M3: Точность | N3: 1
A5: Элементы | B5: Кол-во | G5: Элементы | H5: Кол-во | J5: Элементы | K5: Кол-во | M5: Элементы | N5: Кол-во
A6: 736.5 | B6: =myPodbor(A6:A15,B1,B2,B3) -> 4 | G6: 287.5 | H6: =myPodbor(G6:G15,H1,H2,H3) -> 28 | J6: 287.5 | K6: =myPodbor(J6:J15,K1,K2,K3) -> 64 | M6: 287.5 | N6: =myPodbor(M6:M15,N1,N2,N3) -> 0
A7: 747.7 | B7: 22 | G7: 269.3 | H7: 52 | J7: 269.3 | K7: 21 | M7: 269.3 | N7: 52
A8: 193.2 | B8: 100 | G8: 201.7 | H8: 0 | J8: 201.7 | K8: 0 | M8: 201.7 | N8: 30
A9: 256.5 | B9: 0 | G9: 759.9 | H9: 0 | J9: 759.9 | K9: 0 | M9: 759.9 | N9: 0
A10: 774.1 | B10: 0 | H10: 0 | K10: 0 | N10: 0
B11: 0 | H11: 0 | K11: 0 | N11: 0
B12: 0 | H12: 0 | K12: 0 | N12: 0
B13: 0 | H13: 0 | K13: 0 | N13: 0
B14: 0 | H14: 0 | K14: 0 | N14: 0
B15: 0 | H15: 0 | K15: 0 | N15: 0
A16: Сумма | B16: =SUMPRODUCT(B6:B15,A6:A15) -> 38715.4 | G16: Сумма | H16: =SUMPRODUCT(H6:H15,G6:G15) -> 22053.6 | J16: Сумма | K16: =SUMPRODUCT(K6:K15,J6:J15) -> 24055.3 | M16: Сумма | N16: =SUMPRODUCT(N6:N15,M6:M15) -> 20054.6
A17: Откл. абс. | B17: =B16-B1 -> 0 | G17: Откл. абс. | H17: =H16-H1 -> 0 | J17: Откл. абс. | K17: =K16-K1 -> 1.7 | M17: Откл. абс. | N17: =N16-N1 -> 1
A18: Откл. отн. | B18: =B17/B1 -> 0 | G18: Откл. отн. | H18: =H17/H1 -> 0 | J18: Откл. отн. | K18: =K17/K1 -> 7.06754914e-05 | M18: Откл. отн. | N18: =N17/N1 -> 4.986635816e-05
